lending/lending_fUSD_20241115
["ID","MTS","AMOUNT","RATE_DAILY","PERIOD"]
[342282407,1731693057441,-523.98,9.799e-05,2]
[342282408,1731693057450,-500.0,9.799e-05,2]
[342282409,1731693057459,-500.0,9.799e-05,2]
[342282410,1731693057468,-500.0,9.799e-05,2]
[342282411,1731693057478,-500.0,9.799e-05,2]
[342282412,1731693057487,-500.0,9.799e-05,2]
[342282413,1731693057500,-500.0,9.799e-05,2]
[342282414,1731693057509,-802.96,9.799e-05,2]
[342282415,1731693057518,-1113.6,9.799e-05,2]
[342282416,1731693057528,-500.0,9.799e-05,2]
[342282417,1731693057537,-500.0,9.799e-05,2]
[342282418,1731693057547,-500.0,9.799e-05,2]
[342282419,1731693057557,-500.0,9.799e-05,2]
[342282420,1731693057566,-912.28,9.799e-05,2]
[342282421,1731693057576,-2578.72,9.799e-05,2]
[342282422,1731693057589,-500.0,9.799e-05,2]
[342282423,1731693057598,-500.0,9.799e-05,2]
[342282424,1731693057607,-891.71,9.799e-05,2]
[342282425,1731693057616,-763.37,9.799e-05,2]
[342282426,1731693057627,-500.0,9.799e-05,2]
[342282427,1731693057636,-551.21642664,9.799e-05,2]
[342282428,1731693057645,-2180.49,9.799e-05,2]
[342282429,1731693057655,-718.99,9.799e-05,2]
[342282430,1731693057666,-500.0,9.799e-05,2]
[342282431,1731693057677,-1044.28,9.799e-05,2]
[342282432,1731693057686,-500.0,9.799e-05,2]
[342282433,1731693057695,-999.64,9.799e-05,2]
[342282434,1731693057704,-500.0,9.799e-05,2]
[342282435,1731693057713,-500.0,9.799e-05,2]
[342282436,1731693057722,-2570.6,9.799e-05,2]
[342282437,1731693057732,-500.0,9.799e-05,2]
[342282438,1731693057744,-500.0,9.799e-05,2]
[342282439,1731693057753,-470.03631945,9.799e-05,2]
[342282440,1731693057763,-500.0,9.799e-05,2]
[342282441,1731693057773,-500.0,9.799e-05,2]
[342282442,1731693057783,-500.0,9.799e-05,2]
[342282443,1731693057794,-1028.83,9.799e-05,2]
[342282444,1731693057804,-2121.02,9.799e-05,2]
[342282445,1731693057813,-500.0,9.799e-05,2]
[342282446,1731693057824,-500.0,9.799e-05,2]
[342282447,1731693057834,-1419.57,9.799e-05,2]
[342282448,1731693057843,-1259.21,9.799e-05,2]
[342282449,1731693057852,-500.0,9.799e-05,2]
[342282450,1731693057862,-842.13,9.799e-05,2]
[342282451,1731693057871,-500.0,9.799e-05,2]
[342282452,1731693057880,-1134.14,9.799e-05,2]
[342282453,1731693057890,-500.0,9.799e-05,2]
[342282454,1731693057899,-513.43,9.799e-05,2]
[342282455,1731693057909,-500.0,9.799e-05,2]
[342282456,1731693057918,-1783.49,9.799e-05,2]
[342282457,1731693057928,-500.0,9.799e-05,2]
[342282458,1731693057937,-888.89,9.799e-05,2]
[342282459,1731693057947,-500.0,9.799e-05,2]
[342282460,1731693057957,-500.0,9.799e-05,2]
[342282461,1731693057967,-500.0,9.799e-05,2]
[342282462,1731693057976,-1472.11,9.799e-05,2]
[342282463,1731693057986,-500.0,9.799e-05,2]
[342282464,1731693057997,-500.0,9.799e-05,2]
[342282465,1731693058007,-500.0,9.799e-05,2]
[342282466,1731693058017,-748.19,9.799e-05,2]
[342282467,1731693058027,-500.0,9.799e-05,2]
[342282468,1731693058036,-500.0,9.799e-05,2]
[342282469,1731693058046,-707.39,9.799e-05,2]
[342282470,1731693058055,-638.06,9.799e-05,2]
[342282471,1731693058065,-742.68,9.799e-05,2]
[342282472,1731693058074,-500.0,9.799e-05,2]
[342282473,1731693058085,-523.59,9.799e-05,2]
[342282474,1731693058094,-865.77,9.799e-05,2]
[342282475,1731693058104,-867.42,9.799e-05,2]
[342282476,1731693058114,-500.0,9.799e-05,2]
[342282477,1731693058124,-3832.17,9.799e-05,2]
[342282478,1731693058133,-878.07,9.799e-05,2]
[342282479,1731693058142,-500.0,9.799e-05,2]
[342282480,1731693058152,-3419.82,9.799e-05,2]
[342282481,1731693058162,-500.0,9.799e-05,2]
[342282482,1731693058172,-453.03600422,9.799e-05,2]
[342282483,1731693058181,-1161.76,9.799e-05,2]
[342282484,1731693058194,-500.0,9.799e-05,2]
[342282485,1731693058203,-3359.91,9.799e-05,2]
[342282486,1731693058213,-856.06,9.799e-05,2]
[342282487,1731693058223,-500.0,9.799e-05,2]
[342282488,1731693058232,-527.88473431,9.799e-05,2]
[342282489,1731693058243,-1534.1,9.799e-05,2]
[342282490,1731693058252,-500.0,9.799e-05,2]
[342282491,1731693058262,-500.0,9.799e-05,2]
[342282492,1731693058271,-500.0,9.799e-05,2]
[342282493,1731693058281,-500.0,9.799e-05,2]
[342282494,1731693058290,-1224.19,9.799e-05,2]
[342282495,1731693058300,-1197.95,9.799e-05,2]
[342282496,1731693058309,-500.0,9.799e-05,2]
[342282497,1731693058319,-1454.1,9.799e-05,2]
[342282498,1731693058328,-500.0,9.799e-05,2]
[342282499,1731693058338,-1136.18,9.799e-05,2]
[342282500,1731693058347,-500.0,9.799e-05,2]
[342282501,1731693058357,-500.0,9.799e-05,2]
[342282502,1731693058366,-603.97,9.799e-05,2]
[342282503,1731693058376,-500.0,9.799e-05,2]
[342282504,1731693058386,-500.0,9.799e-05,2]
[342282505,1731693058396,-1354.7,9.799e-05,2]
[342282506,1731693058405,-691.65,9.799e-05,2]
[342282507,1731693058416,-587.39,9.799e-05,2]
[342282508,1731693058425,-500.0,9.799e-05,2]
[342282509,1731693058434,-656.07,9.799e-05,2]
[342282510,1731693058444,-1786.81,9.799e-05,2]
[342282511,1731693058453,-934.02,9.799e-05,2]
[342282512,1731693058463,-500.0,9.799e-05,2]
[342282513,1731693058472,-500.0,9.799e-05,2]
[342282514,1731693058482,-329.03658994,9.799e-05,2]
[342282515,1731693058493,-500.0,9.799e-05,2]
[342282516,1731693058503,-500.0,9.799e-05,2]
[342282517,1731693058513,-1039.17,9.799e-05,2]
[342282518,1731693058523,-813.7,9.799e-05,2]
[342282519,1731693058532,-3211.37,9.799e-05,2]
[342282520,1731693058542,-500.0,9.799e-05,2]
[342282521,1731693058551,-544.38008,9.799e-05,2]
[342282522,1731693058560,-500.0,9.799e-05,2]
[342282523,1731693058569,-1449.41,9.799e-05,2]
[342282524,1731693058579,-500.0,9.799e-05,2]
[342282525,1731693058592,-500.0,9.799e-05,2]
[342282526,1731693058602,-500.0,9.799e-05,2]
[342282527,1731693058611,-844.46,9.799e-05,2]
[342282528,1731693058620,-994.1,9.799e-05,2]
[342282529,1731693058630,-685.47,9.799e-05,2]
[342282530,1731693058639,-1586.3,9.799e-05,2]
[342282531,1731693058649,-500.0,9.799e-05,2]
[342282532,1731693059064,-1992.43,9.799e-05,2]
[342282533,1731693059074,-500.0,9.799e-05,2]
[342282534,1731693059084,-2263.28,9.799e-05,2]
[342282535,1731693059093,-500.0,9.799e-05,2]
[342282536,1731693059103,-1525.27,9.799e-05,2]
[342282537,1731693059112,-3030.15,9.799e-05,2]
[342282538,1731693059121,-500.0,9.799e-05,2]
[342282539,1731693059130,-2262.19,9.799e-05,2]
[342282540,1731693059140,-500.0,9.799e-05,2]
[342282541,1731693059149,-2775.49,9.799e-05,2]
[342282542,1731693059157,-2647.95,9.799e-05,2]
[342282543,1731693059167,-1108.88,9.799e-05,2]
[342282544,1731693059176,-500.0,9.799e-05,2]
[342282545,1731693059186,-1760.64,9.799e-05,2]
[342282546,1731693059195,-500.0,9.799e-05,2]
[342282547,1731693059204,-500.0,9.799e-05,2]
[342282548,1731693059214,-557.47,9.799e-05,2]
[342282549,1731693059223,-1721.38,9.799e-05,2]
[342282550,1731693059232,-507.41,9.799e-05,2]
[342282551,1731693059244,-5270.17,9.799e-05,2]
[342282552,1731693059254,-1101.23,9.799e-05,2]
[342282553,1731693059264,-3353.64,9.799e-05,2]
[342282554,1731693059273,-2081.54,9.799e-05,2]
[342282555,1731693059283,-1115.35,9.799e-05,2]
[342282556,1731693059291,-500.0,9.799e-05,2]
[342282557,1731693059301,-1531.17,9.799e-05,2]
[342282558,1731693059310,-2748.61,9.799e-05,2]
[342282559,1731693059319,-1131.33,9.799e-05,2]
[342282560,1731693059329,-1027.06,9.799e-05,2]
[342282561,1731693059338,-1431.59014058,9.799e-05,2]
[342282562,1731693059372,-440.29733,9.799e-05,2]
[342282563,1731693059383,-576.97252942,9.799e-05,2]
[342282564,1731693059393,-1886.22819981,9.799e-05,2]
[342282565,1731693059404,-89.72180019,9.799e-05,2]
[342282566,1731693059414,-500.0,9.799e-05,2]
[342282567,1731693059423,-851.1,9.799e-05,2]
[342282568,1731693059433,-323.69003981,9.799e-05,2]
[342282569,1731693059443,-176.30996019,9.799e-05,2]
[342282570,1731693059453,-778.79,9.799e-05,2]
[342282571,1731693059462,-500.0,9.799e-05,2]
[342282572,1731693059471,-500.0,9.799e-05,2]
[342282573,1731693059480,-1405.67,9.799e-05,2]
[342282574,1731693059492,-150.0,9.803e-05,2]
[342282575,1731693059501,-150.0,9.819e-05,2]
[342282576,1731693059510,-150.0,9.844e-05,2]
[342282577,1731693059520,-150.0,9.845e-05,2]
[342282578,1731693059529,-150.0,9.846e-05,2]
[342282579,1731693059538,-150.0,9.864e-05,2]
[342282580,1731693059547,-150.0,9.866e-05,2]
[342282581,1731693059557,-150.0,9.871e-05,2]
[342282582,1731693059566,-150.0,9.871e-05,2]
[342282583,1731693059576,-500.0,9.875e-05,2]
[342282584,1731693059588,-643.66,9.875e-05,2]
[342282585,1731693059597,-500.0,9.875e-05,2]
[342282586,1731693059607,-2626.77003981,9.875e-05,2]
[342282587,1731693059651,-404.91996019,9.875e-05,2]
[342282588,1731693059662,-500.0,9.875e-05,2]
[342282589,1731693059671,-3885.29556132,9.875e-05,2]
[342282590,1731693059691,-5700.68443868,9.875e-05,2]
[342282591,1731693059701,-500.0,9.875e-05,2]
[342282592,1731693059711,-783.03,9.875e-05,2]
[342282593,1731693059720,-500.0,9.875e-05,2]
[342282594,1731693059730,-904.8,9.875e-05,2]
[342282595,1731693059742,-1265.74,9.875e-05,2]
[342282596,1731693059752,-500.0,9.875e-05,2]
[342282597,1731693059762,-500.0,9.875e-05,2]
[342282598,1731693059772,-507.48,9.876e-05,2]
[342282599,1731693059782,-986.95,9.876e-05,2]
[342282600,1731693059791,-500.0,9.876e-05,2]
[342282601,1731693059800,-500.0,9.876e-05,2]
[342282602,1731693059810,-500.0,9.876e-05,2]
[342282603,1731693059819,-500.0,9.876e-05,2]
[342282604,1731693059829,-1448.9,9.876e-05,2]
[342282605,1731693059838,-500.0,9.876e-05,2]
[342282606,1731693059848,-500.0,9.876e-05,2]
[342282607,1731693059857,-162.69309304,9.876e-05,2]
[342282608,1731693059867,-500.0,9.876e-05,2]
[342282609,1731693059876,-662.53,9.876e-05,2]
[342282610,1731693059886,-2056.56,9.876e-05,2]
[342282611,1731693059895,-500.0,9.876e-05,2]
[342282612,1731693059904,-624.27,9.876e-05,2]
[342282613,1731693059914,-500.0,9.876e-05,2]
[342282614,1731693059924,-500.0,9.876e-05,2]
[342282615,1731693059933,-500.0,9.876e-05,2]
[342282616,1731693059942,-573.49,9.876e-05,2]
[342282617,1731693059952,-500.0,9.876e-05,2]
[342282618,1731693059961,-708.64,9.876e-05,2]
[342282619,1731693059970,-500.0,9.876e-05,2]
[342282620,1731693059980,-500.0,9.876e-05,2]
[342282621,1731693059989,-500.0,9.876e-05,2]
[342282622,1731693059999,-500.0,9.876e-05,2]
[342282623,1731693060009,-1042.49,9.876e-05,2]
[342282624,1731693060018,-500.0,9.876e-05,2]
[342282625,1731693060029,-166.99,9.876e-05,2]
[342282626,1731693060039,-500.0,9.876e-05,2]
[342282627,1731693060049,-500.0,9.876e-05,2]
[342282628,1731693060059,-1057.69,9.876e-05,2]
[342282629,1731693060069,-500.0,9.876e-05,2]
[342282630,1731693060078,-500.0,9.876e-05,2]
[342282631,1731693060088,-500.0,9.876e-05,2]
[342282632,1731693060097,-500.0,9.876e-05,2]
[342282633,1731693060108,-500.0,9.876e-05,2]
[342282634,1731693060118,-500.0,9.876e-05,2]
[342282635,1731693060127,-500.0,9.876e-05,2]
[342282636,1731693060137,-500.0,9.876e-05,2]
[342282637,1731693060147,-500.0,9.876e-05,2]
[342282638,1731693060157,-500.0,9.876e-05,2]
[342282639,1731693060166,-500.0,9.876e-05,2]
[342282640,1731693060176,-500.0,9.876e-05,2]
[342282641,1731693060185,-547.12,9.876e-05,2]
[342282642,1731693060195,-500.0,9.876e-05,2]
[342282643,1731693060206,-500.0,9.876e-05,2]
[342282644,1731693060216,-500.0,9.876e-05,2]
[342282645,1731693060226,-806.43,9.876e-05,2]
[342282646,1731693060235,-500.0,9.876e-05,2]
[342282647,1731693060245,-500.0,9.876e-05,2]
[342282648,1731693060256,-500.0,9.876e-05,2]
[342282649,1731693060266,-500.0,9.876e-05,2]
[342282650,1731693060275,-500.0,9.876e-05,2]
[342282651,1731693060285,-722.46,9.876e-05,2]
[342282652,1731693060294,-500.3,9.876e-05,2]
[342282653,1731693060304,-221.04,9.876e-05,2]
[342282654,1731693060314,-500.0,9.876e-05,2]
[342282655,1731693060323,-500.0,9.876e-05,2]
[342282656,1731693060333,-500.0,9.876e-05,2]
[342282657,1731693060342,-158.21246825,9.876e-05,2]
[342282658,1731693060356,-980.30753175,9.876e-05,2]
[342282659,1731693060366,-500.0,9.876e-05,2]
[342282660,1731693060375,-500.0,9.876e-05,2]
[342282661,1731693060384,-541.9,9.876e-05,2]
[342282662,1731693060394,-500.0,9.876e-05,2]
[342282663,1731693060403,-500.0,9.876e-05,2]
[342282664,1731693060412,-500.0,9.876e-05,2]
[342282665,1731693060422,-500.0,9.876e-05,2]
[342282666,1731693060432,-823.19,9.876e-05,2]
[342282667,1731693060441,-366.76724136,9.876e-05,2]
[342282668,1731693060450,-500.0,9.876e-05,2]
[342282669,1731693060460,-500.0,9.876e-05,2]
[342282670,1731693060469,-500.0,9.876e-05,2]
[342282671,1731693060479,-500.0,9.876e-05,2]
[342282672,1731693060488,-500.0,9.876e-05,2]
[342282673,1731693060499,-500.0,9.876e-05,2]
[342282674,1731693060509,-500.0,9.876e-05,2]
[342282675,1731693060518,-500.0,9.876e-05,2]
[342282676,1731693060527,-601.67,9.876e-05,2]
[342282677,1731693060536,-500.0,9.876e-05,2]
[342282678,1731693060546,-500.0,9.876e-05,2]
[342282679,1731693060555,-500.0,9.876e-05,2]
[342282680,1731693060564,-500.0,9.876e-05,2]
[342282681,1731693060574,-500.0,9.876e-05,2]
[342282682,1731693060587,-659.67,9.876e-05,2]
[342282683,1731693060597,-500.0,9.876e-05,2]
[342282684,1731693060606,-500.0,9.876e-05,2]
[342282685,1731693060615,-500.0,9.876e-05,2]
[342282686,1731693060625,-500.0,9.876e-05,2]
[342282687,1731693060635,-500.0,9.876e-05,2]
[342282688,1731693060644,-500.0,9.876e-05,2]
[342282689,1731693060653,-500.0,9.876e-05,2]
[342282690,1731693060665,-500.0,9.876e-05,2]
[342282691,1731693060674,-500.0,9.876e-05,2]
[342282692,1731693060684,-500.0,9.876e-05,2]
[342282693,1731693060693,-500.0,9.876e-05,2]
[342282694,1731693060702,-500.0,9.876e-05,2]
[342282695,1731693060711,-500.0,9.876e-05,2]
[342282696,1731693060721,-500.0,9.876e-05,2]
[342282697,1731693060730,-500.0,9.876e-05,2]
[342282698,1731693060739,-624.84,9.876e-05,2]
[342282699,1731693060753,-500.0,9.876e-05,2]
[342282700,1731693060762,-500.0,9.876e-05,2]
[342282701,1731693060772,-500.0,9.876e-05,2]
[342282702,1731693060781,-500.0,9.876e-05,2]
[342282703,1731693060791,-1386.75,9.876e-05,2]
[342282704,1731693060802,-1068.01,9.876e-05,2]
[342282705,1731693060812,-1386.75,9.876e-05,2]
[342282706,1731693060822,-1068.01,9.876e-05,2]
[342282707,1731693060831,-500.0,9.876e-05,2]
[342282708,1731693060841,-500.0,9.876e-05,2]
[342282709,1731693060851,-500.0,9.876e-05,2]
[342282710,1731693060861,-500.0,9.876e-05,2]
[342282711,1731693060871,-500.0,9.876e-05,2]
[342282712,1731693060880,-696.97,9.876e-05,2]
[342282713,1731693060890,-500.0,9.876e-05,2]
[342282714,1731693060899,-500.0,9.876e-05,2]
[342282715,1731693060909,-500.0,9.876e-05,2]
[342282716,1731693060919,-500.0,9.876e-05,2]
[342282717,1731693060928,-535.25,9.876e-05,2]
[342282718,1731693060938,-500.0,9.876e-05,2]
[342282719,1731693060948,-500.0,9.876e-05,2]
[342282720,1731693060958,-500.0,9.876e-05,2]
[342282721,1731693060967,-500.0,9.876e-05,2]
[342282722,1731693060977,-500.0,9.876e-05,2]
[342282723,1731693060986,-500.0,9.876e-05,2]
[342282724,1731693060998,-500.0,9.876e-05,2]
[342282725,1731693061007,-500.0,9.876e-05,2]
[342282726,1731693061017,-500.0,9.876e-05,2]
[342282727,1731693061027,-500.0,9.876e-05,2]
[342282728,1731693061036,-500.0,9.876e-05,2]
[342282729,1731693061046,-500.0,9.876e-05,2]
[342282730,1731693061055,-500.0,9.876e-05,2]
[342282731,1731693061065,-500.0,9.876e-05,2]
[342282732,1731693061074,-500.0,9.876e-05,2]
[342282733,1731693061084,-500.0,9.876e-05,2]
[342282734,1731693061093,-500.0,9.876e-05,2]
[342282735,1731693061103,-500.0,9.876e-05,2]
[342282736,1731693061112,-515.64,9.876e-05,2]
[342282737,1731693061121,-500.0,9.876e-05,2]
[342282738,1731693061131,-500.0,9.876e-05,2]
[342282739,1731693061141,-500.0,9.876e-05,2]
[342282740,1731693061150,-504.85,9.876e-05,2]
[342282741,1731693061159,-500.0,9.876e-05,2]
[342282742,1731693061168,-504.85,9.876e-05,2]
[342282743,1731693061177,-500.0,9.876e-05,2]
[342282744,1731693061187,-500.0,9.876e-05,2]
[342282745,1731693061196,-500.0,9.876e-05,2]
[342282746,1731693061205,-500.0,9.876e-05,2]
[342282747,1731693061215,-500.0,9.876e-05,2]
[342282748,1731693061224,-500.0,9.876e-05,2]
[342282749,1731693061233,-500.0,9.876e-05,2]
[342282750,1731693061244,-680.22,9.876e-05,2]
[342282751,1731693061253,-500.0,9.876e-05,2]
[342282752,1731693061263,-680.22,9.876e-05,2]
[342282753,1731693061273,-500.0,9.876e-05,2]
[342282754,1731693061283,-424.08904686,9.876e-05,2]
[342282755,1731693061292,-500.0,9.876e-05,2]
[342282756,1731693061301,-500.0,9.876e-05,2]
[342282757,1731693061311,-500.0,9.876e-05,2]
[342282758,1731693061320,-500.0,9.876e-05,2]
[342282759,1731693061329,-500.0,9.876e-05,2]
[342282760,1731693061339,-500.0,9.876e-05,2]
[342282761,1731693061349,-1210.84,9.876e-05,2]
[342282762,1731693061359,-1210.84,9.876e-05,2]
[342282763,1731693061368,-500.0,9.876e-05,2]
[342282764,1731693061378,-500.0,9.876e-05,2]
[342282765,1731693061390,-500.0,9.876e-05,2]
[342282766,1731693061496,-500.0,9.876e-05,2]
[342282767,1731693061505,-500.0,9.876e-05,2]
[342282768,1731693061515,-640.65,9.876e-05,2]
[342282769,1731693061524,-500.0,9.876e-05,2]
[342282770,1731693061533,-500.0,9.876e-05,2]
[342282771,1731693061542,-500.0,9.876e-05,2]
[342282772,1731693061551,-2477.46,9.876e-05,2]
[342282773,1731693061561,-500.0,9.876e-05,2]
[342282774,1731693061570,-2477.46,9.876e-05,2]
[342282775,1731693061580,-1594.05,9.876e-05,2]
[342282776,1731693061593,-1594.05,9.876e-05,2]
[342282777,1731693061602,-500.0,9.876e-05,2]
[342282778,1731693061611,-500.0,9.876e-05,2]
[342282779,1731693061621,-500.0,9.876e-05,2]
[342282780,1731693061631,-1415.12,9.876e-05,2]
[342282781,1731693061640,-500.0,9.876e-05,2]
[342282782,1731693061649,-500.0,9.876e-05,2]
[342282783,1731693061659,-500.0,9.876e-05,2]
[342282784,1731693061670,-578.66,9.876e-05,2]
[342282785,1731693061679,-500.0,9.876e-05,2]
[342282786,1731693061689,-500.0,9.876e-05,2]
[342282787,1731693061699,-500.0,9.876e-05,2]
[342282788,1731693061708,-250.0,9.876e-05,2]
[342282789,1731693061717,-250.0,9.876e-05,2]
[342282790,1731693061727,-401.69501147,9.876e-05,2]
[342282791,1731693061736,-1222.2,9.876e-05,2]
[342282792,1731693061747,-880.63,9.876e-05,2]
[342282793,1731693061757,-500.0,9.876e-05,2]
[342282794,1731693061766,-500.0,9.876e-05,2]
[342282795,1731693061776,-500.0,9.876e-05,2]
[342282796,1731693061786,-679.72,9.876e-05,2]
[342282797,1731693061796,-500.0,9.876e-05,2]
[342282798,1731693061805,-500.0,9.876e-05,2]
[342282799,1731693061814,-500.0,9.876e-05,2]
[342282800,1731693061824,-500.0,9.876e-05,2]
[342282801,1731693061833,-4708.97,9.876e-05,2]
[342282802,1731693061842,-500.0,9.876e-05,2]
[342282803,1731693061852,-500.0,9.876e-05,2]
[342282804,1731693061863,-500.0,9.876e-05,2]
[342282805,1731693061872,-500.0,9.876e-05,2]
[342282806,1731693061881,-325.96,9.876e-05,2]
[342282807,1731693061890,-500.0,9.876e-05,2]
[342282808,1731693061900,-500.0,9.876e-05,2]
[342282809,1731693061910,-500.0,9.876e-05,2]
[342282810,1731693061919,-500.0,9.876e-05,2]
[342282811,1731693061930,-500.0,9.876e-05,2]
[342282812,1731693061939,-500.0,9.876e-05,2]
[342282813,1731693061949,-567.45434288,9.876e-05,2]
[342282814,1731693061958,-500.0,9.876e-05,2]
[342282815,1731693061968,-500.0,9.876e-05,2]
[342282816,1731693061978,-7958.68,9.876e-05,2]
[342282817,1731693061987,-500.0,9.876e-05,2]
[342282818,1731693061999,-500.0,9.876e-05,2]
[342282819,1731693062008,-500.0,9.876e-05,2]
[342282820,1731693062018,-500.0,9.876e-05,2]
[342282821,1731693062028,-500.0,9.876e-05,2]
[342282822,1731693062037,-500.0,9.876e-05,2]
[342282823,1731693062048,-500.0,9.876e-05,2]
[342282824,1731693062065,-772.56,9.876e-05,2]
[342282825,1731693062087,-500.0,9.876e-05,2]
[342282826,1731693062102,-500.0,9.876e-05,2]
[342282827,1731693062112,-500.0,9.876e-05,2]
[342282828,1731693062121,-500.0,9.876e-05,2]
[342282829,1731693062131,-500.0,9.876e-05,2]
[342282830,1731693062140,-500.0,9.876e-05,2]
[342282831,1731693062150,-500.0,9.876e-05,2]
[342282832,1731693062160,-500.0,9.876e-05,2]
[342282833,1731693062170,-7275.06,9.876e-05,2]
[342282834,1731693062179,-3431.25,9.876e-05,2]
[342282835,1731693062188,-3431.25,9.876e-05,2]
[342282836,1731693062198,-500.0,9.876e-05,2]
[342282837,1731693062207,-500.0,9.876e-05,2]
[342282838,1731693062216,-500.0,9.876e-05,2]
[342282839,1731693062225,-500.0,9.876e-05,2]
[342282840,1731693062235,-500.0,9.876e-05,2]
[342282841,1731693062245,-2256.11,9.876e-05,2]
[342282842,1731693062254,-2256.11,9.876e-05,2]
[342282843,1731693062263,-1037.43,9.876e-05,2]
[342282844,1731693062272,-500.0,9.876e-05,2]
[342282845,1731693062281,-500.0,9.876e-05,2]
[342282846,1731693062291,-535.78,9.876e-05,2]
[342282847,1731693062300,-500.0,9.876e-05,2]
[342282848,1731693062309,-535.78,9.876e-05,2]
[342282849,1731693062319,-3247.41,9.876e-05,2]
[342282850,1731693062329,-3247.41,9.876e-05,2]
[342282851,1731693062338,-500.0,9.876e-05,2]
[342282852,1731693062347,-500.0,9.876e-05,2]
[342282853,1731693062356,-500.0,9.876e-05,2]
[342282854,1731693062365,-500.0,9.876e-05,2]
[342282855,1731693062374,-657.38,9.876e-05,2]
[342282856,1731693062383,-644.25,9.876e-05,2]
[342282857,1731693062392,-644.25,9.876e-05,2]
[342282858,1731693062401,-500.0,9.876e-05,2]
[342282859,1731693062411,-500.0,9.876e-05,2]
[342282860,1731693062420,-500.0,9.876e-05,2]
[342282861,1731693062429,-500.0,9.876e-05,2]
[342282862,1731693062438,-500.0,9.876e-05,2]
[342282863,1731693062447,-500.0,9.876e-05,2]
[342282864,1731693062456,-500.0,9.876e-05,2]
[342282865,1731693062465,-500.0,9.876e-05,2]
[342282866,1731693062475,-500.0,9.876e-05,2]
[342282867,1731693062485,-500.0,9.876e-05,2]
[342282868,1731693062496,-500.0,9.876e-05,2]
[342282869,1731693062505,-781.72,9.876e-05,2]
[342282870,1731693062514,-500.0,9.876e-05,2]
[342282871,1731693062523,-500.0,9.876e-05,2]
[342282872,1731693062532,-500.0,9.876e-05,2]
[342282873,1731693062542,-500.0,9.876e-05,2]
[342282874,1731693062551,-500.0,9.876e-05,2]
[342282875,1731693062560,-500.0,9.876e-05,2]
[342282876,1731693062569,-500.0,9.876e-05,2]
[342282877,1731693062579,-500.0,9.876e-05,2]
[342282878,1731693062596,-500.0,9.876e-05,2]
[342282879,1731693062607,-273.58,9.876e-05,2]
[342282880,1731693062616,-500.0,9.876e-05,2]
[342282881,1731693062627,-500.0,9.876e-05,2]
[342282882,1731693062638,-575.7,9.876e-05,2]
[342282883,1731693062647,-575.7,9.876e-05,2]
[342282884,1731693062659,-500.0,9.876e-05,2]
[342282885,1731693062668,-2172.08,9.876e-05,2]
[342282886,1731693062678,-513.01,9.876e-05,2]
[342282887,1731693062688,-513.01,9.876e-05,2]
[342282888,1731693062698,-500.0,9.876e-05,2]
[342282889,1731693062708,-500.0,9.876e-05,2]
[342282890,1731693062717,-22331.47,9.876e-05,2]
[342282891,1731693062727,-500.0,9.876e-05,2]
[342282892,1731693062737,-500.0,9.876e-05,2]
[342282893,1731693062750,-500.0,9.876e-05,2]
[342282894,1731693062759,-1471.98,9.876e-05,2]
[342282895,1731693062769,-3797.02,9.876e-05,2]
[342282896,1731693062778,-3797.02,9.876e-05,2]
[342282897,1731693062788,-500.0,9.876e-05,2]
[342282898,1731693062797,-500.0,9.876e-05,2]
[342282899,1731693062807,-1265.31,9.876e-05,2]
[342282900,1731693062816,-636.21,9.876e-05,2]
[342282901,1731693062826,-256.24554677,9.876e-05,2]
[342282902,1731693062835,-548.12,9.876e-05,2]
[342282903,1731693062844,-548.12,9.876e-05,2]
[342282904,1731693062854,-552.79,9.876e-05,2]
[342282905,1731693062864,-552.79,9.876e-05,2]
[342282906,1731693062874,-500.0,9.876e-05,2]